Workbook

Sheet Controls & AQA Log
D1: Controls & AQA Log
B4: Overview
B5: Analyst(s) | C5: MoJ ASD
B6: Commissioner/Customer | C6: VHCC Group
B7: Purpose | C7: To calculate the Interim Fixed Fee Offer (IFFO) for a Very High Cost Case (VHCC). Inputs are supplied by LAA caseworkers. This model does not have agreed assumptions terrorism cases and does not estimate fees for second juniors as agreed with the HCC. This model has been handed over to the LAA as part of business as usual. The HCC can insert the inputs in the 'Inputs tab', the Model tab will automatically update and the Summary will give the key results. These are the fees agreed for very high cost cases with the Bar.
B8: Instructions on how to use model | C8: 1. Go to the Inputs tab (yellow) and fill in everything in yellow 2. The summary tab will give you the results 3. For info, the model tab in green has all the calculations, which come from formulae, the data and assumptions tab and the Regs tab 4. Once the inputs have been put in, the model should be QA'ed by LAA finance 5. The workbook is locked. If any formulae or assumptions need to change, please contact either LAA finance or Analytical Services
B11: Latest Agreed Version
B12: Version | C12: Date of Sign-Off
B13: IFFO Model 20160108 | C13: 2016-10-19
B16: Version Control
B17: Version | C17: Date | D17: Analyst | E17: Description of changes
B18: IFFO Model 698 v4 01102015 first offer.xlsx | C18: 2015-10-01 | D18: Angus | E18: first offer for Libor cases
B19: IFFO Model 698 v4 01102015 second offer.xlsx | C19: 2015-10-01 | D19: Angus | E19: Modelled with Cat 1 and Cat 2, with revised PPE
B20: IFFO Model 698 20151009 - new layout second offer.xlsx | C20: 2015-10-09 | D20: Eleni | E20: Based on v401102015 updated Kept the Alternative Calc sheet from old version and then simplified, added named ranges. Third model of capping AGFS fee to VHCC fee, but using AGFS relativities uses a new formula which is more automated and more accurate. Previously we used goal seek to fix number of PPE pages so that AGFS matched VHCC total fee. Now, just apply the relativities from AGFS to VHCC. Difference is a couple of hundred pounds (mostly due to rounding). - also suggested that for new model could pay for actual prep and trial instead of dividing total fee by 3. There are reasons to have 3 payments, may not do this Check witness, terrorism assumptions
B21: IFFO Model 698 20151009 - new layout third offer.xlsx | C21: 2015-11-01 | D21: Eleni | E21: Changed the advocate layout to match regs, offer 3 has revised evidence pages, given by Nick Ford (LAA). The summary pages still have the same order of advocate for this IFFO, but going forward they should all be aligned. Still need to implement some of Huw's suggestions
B22: IFFO Model 20151109.xlsx | C22: 2015-11-09 | D22: Eleni | E22: New standard template, applying all of Huw's suggested changes. Changed model 3 to pick out either the AGFS or VHCC depending on which is lowest, this is now the final model used. Added witness prep and changed order of advocates, so formulae will need rechecking
B23: IFFO Model 20151126.xlsx | C23: 2015-11-26 | D23: Eleni | E23: Assumptions agreed with VHCC group. Added inputs page
B24: IFFO Model 20151218 not QA.xlsx | C24: 2015-12-18 | D24: Eleni | E24: Changed labelling, added instructions. Updated witness formulae (taken from IFFO Model 696 20151126 ES.xlsx). Put in data validation on inputs page.
B25: IFFO Model 20151218 QA.xlsx | C25: 2015-12-18 | D25: Mark Edwardes | E25: QA'ed version
B26: IFFO Model 20160108.xlsx | C26: 2016-01-08 | D26: MOJ ASD | E26: Changed inputs page as suggested by QA
B27: IFFO Model 20160428.xlsx | C27: 2016-04-28 | D27: MOJ ASD | E27: Changed final model (rows 160-163 in Model sheet) to always give adjusted VHCC fee at the request of the HCC. The summay page presents both the adjusted AGFS fee and the tweaked VHCC fee using AGFS proportions. The lowest fee should be used unless sign off is given for the higher fee. Also, a minor tweak to formulae in cells G160-163 to reflect that the rounded total cost of the tweaked VHCC fee is the sum of the rounded individual costs, rather than rounding the raw total cost fee. Impact of around £100 in the latest IFFO, and reflects the reality of what is paid (the sum of rounded individual fees).
B28: IFFO Model 20160921.xlsx | C28: 2016-09-19 | D28: MOJ ASD | E28: Minor tweek to text in cells A49, A58 in "Summary" Sheet and A158 in Model sheet Changes to formula in cells B160 - C165 in "Model" sheet to enable cost for single person to be calculated. This has changed the methodology to now the total cost does not equal the total cost for the VHCC. But the total cost for one of each advocate type is now equal. Agreed with LAA finance this is the right methodology, old one would skew impact of QCs. Witness uplifts still not sorted, but HCC team do not need for now
B30: AQA Log - Developer Testing
B31: Version | C31: Item / Worksheet | D31: Reviewer | E31: Checks Completed? | F31: Details of Checks Performed | G31: Comments / Issues | H31: Follow-up Action Complete? | I31: Related Documentation
B32: IFFO Model 20151009 | C32: Model | D32: Eleni | E32: Yes | F32: Checked outputs match outputs for case 698.
B33: IFFO Model 20151009 | C33: Model | D33: Angus | E33: Yes | F33: Checked that agreed with new model 3 of applying proportions if signed off. That agree could pay payments by prep/hearing rather than divide by 3 if signed off. | G33: Group agreed to easier automatic calculation of proportions. Group agreed to continue to pay in 3 equal payments as it benefits us when cases crack (we do not pay 3rd fee) and it is the status quo.
B34: IFFO Model 20151009 | C34: Model | D34: Huw | E34: Recommendation | F34: That it is explained somewhere what the spreadsheet is for | G34: There is a brief explanation at the top of this tab, but I would go into a bit more detail (maybe on a separate tab) | H34: Yes
B35: IFFO Model 20151009 | C35: Model | D35: Huw | E35: Issue | F35: That it is clear what all the inputs mean / are for | G35: It is still not entirely clear what 'Used evidence pages' and 'Trial days expected' are percentages of | H35: Yes
B36: IFFO Model 20151009 | C36: Model | D36: Huw | E36: Issue | F36: That all numbers are clearly labelled, including units | G36: The labels are clear but the units sometimes aren't (e.g. not clear that evidence is measured in pages) | H36: Yes
B37: IFFO Model 20151009 | C37: Model | D37: Huw | E37: Issue | F37: That formulas should flow left-to-right and top-to-bottom | G37: A lot of calculations seem to flow from the 'Model' tab into the 'Data & Assumptions' tab | H37: Yes
B38: IFFO Model 20151009 | C38: Model | D38: Huw | E38: Recommendation | F38: That the formulas are set out in a consistent manner | G38: I would use a consistent ordering for 'leading junior' and 'led junior', particularly as they are very easily confused | H38: Yes
B39: IFFO Model 20151009 | C39: Model | D39: Huw | E39: Yes | F39: That there are no hard-coded numbers in formulas | G39: What is the point of cells G85:G89? Why have these been set to 999999 / 9999999 etc.? ---- Added comment: These will need to be added for cases where we are paying for witnesses | H39: Yes
B40: IFFO Model 20151009 | C40: Model | D40: Huw | E40: Issue | F40: Sufficient error trapping has been built in to the formulas | G40: In cells B164:B167, only the last formula has been set up to work if the denominator is zero ----- Added in for all and updated formulae | H40: Yes
B41: IFFO Model 20151009 | C41: Model | D41: Huw | E41: Recommendation | F41: That there are no errors in the formulas | G41: The formulas in cells C155:C158 don't use the names of the ranges they are referencing - I would change for consistency | H41: Yes
B42: IFFO Model 20151009 | C42: Model | D42: Huw | E42: Yes | F42: That the numbers add up | G42: The rounding issue in the previous spreadsheet has been solved by adding the rounded numbers
B43: IFFO Model 20151009 | C43: Model | D43: Huw | E43: Yes | F43: That it is clear what the model is doing | G43: The model is well annotated and there is a nice logical structure to it which makes it easy to follow
B44: IFFO Model 20151009 | C44: Model | D44: Huw | E44: Yes | F44: That the formulas are easily auditable | G44: The formulas using offset() work well, but you might want to consider using index(,match()) instead as offset() doesn't get picked up by formula auditing ---- Not changed for this workbook
B45: IFFO Model 20151009 new layout third offer | C45: Model | D45: Huw | E45: Recommendation | F45: That the formulas work for all values of the input parameters | G45: The formulas in cells B148:B151 won't work if the number of trial days is less than 50. Although this is unlikely to happen in practice, it's probably worth putting in some functionality for this just in case | H45: Yes
B46: IFFO Model 20151009 new layout third offer | C46: Model | D46: Huw | E46: Issue | F46: That it is clear what all the calculations are for | G46: It's not clear (to me at least) what the staged payment calculations at the end of the VHCC section are for. If we are paying this case under the modified AGFS, are these staged payments still relevant? ---- Removed - this was a possible refinement but the group decided against it | H46: Yes
B47: IFFO Model 20151109.xlsx | C47: Model | D47: Matthew | E47: Yes | F47: Checked the named cells; Regulations,offset functions
B48: IFFO Model 20151218 QA.xlsx | C48: Model | D48: ME | E48: Yes | F48: Check witnesses formulae which have changed. Would be good to check all formulae as this is the final version. | G48: Corrected INPUT sheet for data validation formula errors Terrorism assumptions still not available Witness formula addition is correctly entered with no change for VHCC unless Murder is type. If murder is the type of case then the witness calculation increase the VHCC payment by more than the AGFS equivalent
B49: IFFO Model 20160108.xlsx | C49: Model | D49: MOJ ASD | E49: Yes | F49: Corrected input sheet for Cat 1 and type. Removed terrorism as not an option at the moment. For future versions that include terrorism, the inputs and assumptions can be updated and spreadsheet should still work. Checked with Helen that ok for witness uplift to be in VHCC only | G49: No issues
B50: IFFO Model 20160428.xlsx | C50: Model | D50: MOJ ASD | E50: Yes | F50: Check rows 160-163 in Model worksheet are correct. Cells C160 to C163 calculates the relevant percentage share from section 4 of the AGFS section and applies it to the VHCC total. Each formula looks at the correct cells. Cells B160 to B163 calculates the average payment per number of people. Formulas all look at correct rows. Cells F160 to F163 are the same as original model and simply rounds the cost per person to the nearest £100. Cells G160 to G163 multiply the rounded cost per person by the number of people. Each formula looks at the correct cells. | G50: No issues
B51: IFFO Model 20160921.xlsx | C51: Model | D51: LAA finance | E51: Recommendation | F51: Checked formulae and methodology | G51: LAA finance raised that if advocates are joining trials late, perhaps they shouldn’t receive the full fee. - Check formulae on witness uplifts? Are the first 10 (expert and non expert) included in the standard rate? Response from LAA service development: the IFFO scheme/ contract would need amending re late changes to representation, and there are no witness uplifts in fraud cases (there would be in a murder case but we haven’t contracted one of these as a VHCC for years). | H51: Yes
B53: Checks Complete? | C53: Yes | D53: Relates to completed checks where no issues have been identified
C54: Recommendation | D54: Relates to checks which have been carried out where no major issues have been identified but where there are recommendations for improvement
C55: Issue | D55: Relates to checks which have identified major issues in the analysis which require action.
C56: Outstanding | D56: Relates to checks which have not been completed due to time or resource constraints.
B59: Unlocking the workbook
B60: All the worksheets have been protected to avoid accidental changes to the formulae, with the exception of inputs. We recommend keeping this protection on. Changes to the model or assumptions should be conducted by Analytical Services or LAA Finance. To unlock the worksheets, the password is VHCC

Sheet Inputs
A1: Inputs
A3: Name | B3: Case ID | C3: Cat | D3: Used Evidence (pages) | E3: Unused Material (pages) | F3: Trial Days | G3: Number of QCs | H3: Number of Leading Juniors | I3: Number of Led Juniors | J3: Number of Junior Alone | K3: Offence Type | L3: Number of Witnesses (non expert) | M3: Number of Witnesses (expert) | AA3: Data validation - do not delete | AB3: Cat 1 | AC3: Fraud
B4: 555 | C4: Cat 1 | D4: 777 | E4: 6666 | F4: 100 | K4: Fraud | AB4: Cat 2 | AC4: Murder
AB5: Cat 3 | AC5: Terrorism

Sheet Summary
A1: Inputs
A2: =Model!A55 -> 0 | B2: =Model!B55 -> 0 | C2: =Model!C55 -> 0 | D2: =Model!D55 -> 0 | E2: =Model!E55 -> 0 | F2: =Model!F55 -> 0 | G2: =Model!G55 -> 0 | H2: =Model!H55 -> 0 | I2: =Model!I55 -> 0 | J2: =Model!J55 -> 0 | K2: =Model!K55 -> 0 | L2: =Model!L55 -> 0 | M2: =Model!M55 -> 0
A3: =Model!A56 -> 0 | B3: =Model!B56 -> Case ID | C3: =Model!C56 -> Cat | D3: =Model!D56 -> Used Evidence (pages) | E3: =Model!E56 -> Unused Material (pages) | F3: =Model!F56 -> Trial Days | G3: =Model!G56 -> Number of QCs | H3: =Model!H56 -> Number of Leading Juniors | I3: =Model!I56 -> Number of Led Juniors | J3: =Model!J56 -> Number of Junior Alone | K3: =Model!K56 -> Offence Type | L3: =Model!L56 -> Number of Witnesses (non expert) | M3: =Model!M56 -> Number of Witnesses (expert)
A4: =Model!A57 -> 0 | B4: =Model!B57 -> 555 | C4: =Model!C57 -> Cat 1 | D4: =Model!D57 -> 777 | E4: =Model!E57 -> 6666 | F4: =Model!F57 -> 100 | G4: =Model!G57 -> 0 | H4: =Model!H57 -> 0 | I4: =Model!I57 -> 0 | J4: =Model!J57 -> 0 | K4: =Model!K57 -> Fraud | L4: =Model!L57 -> 0 | M4: =Model!M57 -> 0
A5: =Model!A58 -> 0 | B5: =Model!B58 -> 0 | C5: =Model!C58 -> 0 | D5: =Model!D58 -> 0 | E5: =Model!E58 -> 0 | F5: =Model!F58 -> 0 | G5: =Model!G58 -> 0 | H5: =Model!H58 -> 0 | I5: =Model!I58 -> 0 | J5: =Model!J58 -> 0 | K5: =Model!K58 -> 0 | L5: =Model!L58 -> 0 | M5: =Model!M58 -> 0
A6: =Model!A59 -> 0 | B6: =Model!B59 -> 0 | C6: =Model!C59 -> 0 | D6: =Model!D59 -> 0 | E6: =Model!E59 -> 0 | F6: =Model!F59 -> 0 | G6: =Model!G59 -> 0 | H6: =Model!H59 -> 0 | I6: =Model!I59 -> 0 | J6: =Model!J59 -> 0 | K6: =Model!K59 -> 0 | L6: =Model!L59 -> 0 | M6: =Model!M59 -> 0
A7: =Model!A60 -> Assumptions used for this case | B7: =Model!B60 -> 0 | C7: =Model!C60 -> 0 | D7: =Model!D60 -> 0 | E7: =Model!E60 -> 0 | F7: =Model!F60 -> 0 | G7: =Model!G60 -> 0 | H7: =Model!H60 -> 0 | I7: =Model!I60 -> 0 | J7: =Model!J60 -> 0 | K7: =Model!K60 -> 0 | L7: =Model!L60 -> 0 | M7: =Model!M60 -> 0 | N7: =Model!N60 -> 0
A8: =Model!A61 -> 0 | B8: =Model!B61 -> 0 | C8: =Model!C61 -> 0 | D8: =Model!D61 -> 0 | E8: =Model!E61 -> 0 | F8: =Model!F61 -> 0 | G8: =Model!G61 -> 0 | H8: =Model!H61 -> 0 | I8: =Model!I61 -> 0 | J8: =Model!J61 -> 0 | K8: =Model!K61 -> 0 | L8: =Model!L61 -> 0 | M8: =Model!M61 -> 0 | N8: =Model!N61 -> 0
A9: =Model!A62 -> Type of case: | B9: =Model!B62 -> Fraud | C9: =Model!C62 -> 0 | D9: =Model!D62 -> 0 | E9: =Model!E62 -> 0 | F9: =Model!F62 -> 0 | G9: =Model!G62 -> 0 | H9: =Model!H62 -> 0 | I9: =Model!I62 -> 0 | J9: =Model!J62 -> 0 | K9: =Model!K62 -> 0 | L9: =Model!L62 -> 0 | M9: =Model!M62 -> 0 | N9: =Model!N62 -> 0
A10: =Model!A63 -> Used Evidence pages | B10: =Model!B63 -> 1 | C10: =Model!C63 -> 0 | D10: =Model!D63 -> 0 | E10: =Model!E63 -> 0 | F10: =Model!F63 -> 0 | G10: =Model!G63 -> 0 | H10: =Model!H63 -> 0 | I10: =Model!I63 -> 0 | J10: =Model!J63 -> 0 | K10: =Model!K63 -> 0 | L10: =Model!L63 -> 0 | M10: =Model!M63 -> 0 | N10: =Model!N63 -> 0
A11: =Model!A64 -> Unused to used ratio | B11: =Model!B64 -> 0.25 | C11: =Model!C64 -> 0 | D11: =Model!D64 -> 0 | E11: =Model!E64 -> 0 | F11: =Model!F64 -> 0 | G11: =Model!G64 -> 0 | H11: =Model!H64 -> 0 | I11: =Model!I64 -> 0 | J11: =Model!J64 -> 0 | K11: =Model!K64 -> 0 | L11: =Model!L64 -> 0 | M11: =Model!M64 -> 0 | N11: =Model!N64 -> 0
A12: =Model!A65 -> Mins per used page | B12: =Model!B65 -> 1.25 | C12: =Model!C65 -> 0 | D12: =Model!D65 -> 0 | E12: =Model!E65 -> 0 | F12: =Model!F65 -> 0 | G12: =Model!G65 -> 0 | H12: =Model!H65 -> 0 | I12: =Model!I65 -> 0 | J12: =Model!J65 -> 0 | K12: =Model!K65 -> 0 | L12: =Model!L65 -> 0 | M12: =Model!M65 -> 0 | N12: =Model!N65 -> 0
A13: =Model!A66 -> Mins per unused page | B13: =Model!B66 -> 0.5 | C13: =Model!C66 -> 0 | D13: =Model!D66 -> 0 | E13: =Model!E66 -> 0 | F13: =Model!F66 -> 0 | G13: =Model!G66 -> 0 | H13: =Model!H66 -> 0 | I13: =Model!I66 -> 0 | J13: =Model!J66 -> 0 | K13: =Model!K66 -> 0 | L13: =Model!L66 -> 0 | M13: =Model!M66 -> 0 | N13: =Model!N66 -> 0
A14: =Model!A67 -> Other prep (hours) | B14: =Model!B67 -> 250 | C14: =Model!C67 -> 0 | D14: =Model!D67 -> 0 | E14: =Model!E67 -> 0 | F14: =Model!F67 -> 0 | G14: =Model!G67 -> 0 | H14: =Model!H67 -> 0 | I14: =Model!I67 -> 0 | J14: =Model!J67 -> 0 | K14: =Model!K67 -> 0 | L14: =Model!L67 -> 0 | M14: =Model!M67 -> 0 | N14: =Model!N67 -> 0
A15: =Model!A68 -> Additional Trial hours prep per day | B15: =Model!B68 -> 2 | C15: =Model!C68 -> 0 | D15: =Model!D68 -> 0 | E15: =Model!E68 -> 0 | F15: =Model!F68 -> 0 | G15: =Model!G68 -> 0 | H15: =Model!H68 -> 0 | I15: =Model!I68 -> 0 | J15: =Model!J68 -> 0 | K15: =Model!K68 -> 0 | L15: =Model!L68 -> 0 | M15: =Model!M68 -> 0 | N15: =Model!N68 -> 0
A16: =Model!A69 -> Trial days expected | B16: =Model!B69 -> 1 | C16: =Model!C69 -> 0 | D16: =Model!D69 -> 0 | E16: =Model!E69 -> 0 | F16: =Model!F69 -> 0 | G16: =Model!G69 -> 0 | H16: =Model!H69 -> 0 | I16: =Model!I69 -> 0 | J16: =Model!J69 -> 0 | K16: =Model!K69 -> 0 | L16: =Model!L69 -> 0 | M16: =Model!M69 -> 0 | N16: =Model!N69 -> 0
A17: =Model!A70 -> Witness Prep hours per Non-Expert | B17: =Model!B70 -> 0 | C17: =Model!C70 -> 0 | D17: =Model!D70 -> 0 | E17: =Model!E70 -> 0 | F17: =Model!F70 -> 0 | G17: =Model!G70 -> 0 | H17: =Model!H70 -> 0 | I17: =Model!I70 -> 0 | J17: =Model!J70 -> 0 | K17: =Model!K70 -> 0 | L17: =Model!L70 -> 0 | M17: =Model!M70 -> 0 | N17: =Model!N70 -> 0
A18: =Model!A71 -> Witness Prep hours per Expert | B18: =Model!B71 -> 0 | C18: =Model!C71 -> 0 | D18: =Model!D71 -> 0 | E18: =Model!E71 -> 0 | F18: =Model!F71 -> 0 | G18: =Model!G71 -> 0 | H18: =Model!H71 -> 0 | I18: =Model!I71 -> 0 | J18: =Model!J71 -> 0 | K18: =Model!K71 -> 0 | L18: =Model!L71 -> 0 | M18: =Model!M71 -> 0 | N18: =Model!N71 -> 0
A19: =Model!A72 -> Category of Case | B19: =Model!B72 -> Cat 1 | C19: =Model!C72 -> 0 | D19: =Model!D72 -> 0 | E19: =Model!E72 -> 0 | F19: =Model!F72 -> 0 | G19: =Model!G72 -> 0 | H19: =Model!H72 -> 0 | I19: =Model!I72 -> 0 | J19: =Model!J72 -> 0 | K19: =Model!K72 -> 0 | L19: =Model!L72 -> 0 | M19: =Model!M72 -> 0 | N19: =Model!N72 -> 0
A20: =Model!A73 -> 0 | B20: =Model!B73 -> 0 | C20: =Model!C73 -> 0 | D20: =Model!D73 -> 0 | E20: =Model!E73 -> 0 | F20: =Model!F73 -> 0 | G20: =Model!G73 -> 0 | H20: =Model!H73 -> 0 | I20: =Model!I73 -> 0 | J20: =Model!J73 -> 0 | K20: =Model!K73 -> 0 | L20: =Model!L73 -> 0 | M20: =Model!M73 -> 0 | N20: =Model!N73 -> 0
A21: =Model!A74 -> VHCC | B21: =Model!B74 -> 0 | C21: =Model!C74 -> 0 | D21: =Model!D74 -> 0 | E21: =Model!E74 -> 0 | F21: =Model!F74 -> 0 | G21: =Model!G74 -> 0 | H21: =Model!H74 -> 0 | I21: =Model!I74 -> 0 | J21: =Model!J74 -> 0 | K21: =Model!K74 -> 0 | L21: =Model!L74 -> 0 | M21: =Model!M74 -> 0 | N21: =Model!N74 -> 0
A22: =Model!A75 -> QC prep | B22: =Model!B75 -> 101.5 | C22: =Model!C75 -> 0 | D22: =Model!D75 -> 0 | E22: =Model!E75 -> 0 | F22: =Model!F75 -> 0 | G22: =Model!G75 -> 0 | H22: =Model!H75 -> 0 | I22: =Model!I75 -> 0 | J22: =Model!J75 -> 0 | K22: =Model!K75 -> 0 | L22: =Model!L75 -> 0 | M22: =Model!M75 -> 0 | N22: =Model!N75 -> 0
A23: =Model!A76 -> QC daily | B23: =Model!B76 -> 333.2 | C23: =Model!C76 -> 0 | D23: =Model!D76 -> 0 | E23: =Model!E76 -> 0 | F23: =Model!F76 -> 0 | G23: =Model!G76 -> 0 | H23: =Model!H76 -> 0 | I23: =Model!I76 -> 0 | J23: =Model!J76 -> 0 | K23: =Model!K76 -> 0 | L23: =Model!L76 -> 0 | M23: =Model!M76 -> 0 | N23: =Model!N76 -> 0
A24: =Model!A77 -> Lead Jr prep | B24: =Model!B77 -> 88.9 | C24: =Model!C77 -> 0 | D24: =Model!D77 -> 0 | E24: =Model!E77 -> 0 | F24: =Model!F77 -> 0 | G24: =Model!G77 -> 0 | H24: =Model!H77 -> 0 | I24: =Model!I77 -> 0 | J24: =Model!J77 -> 0 | K24: =Model!K77 -> 0 | L24: =Model!L77 -> 0 | M24: =Model!M79 -> 0 | N24: =Model!N79 -> 0
A25: =Model!A78 -> Lead Jr daily | B25: =Model!B78 -> 273 | C25: =Model!C78 -> 0 | D25: =Model!D78 -> 0 | E25: =Model!E78 -> 0 | F25: =Model!F78 -> 0 | G25: =Model!G78 -> 0 | H25: =Model!H78 -> 0 | I25: =Model!I78 -> 0 | J25: =Model!J78 -> 0 | K25: =Model!K78 -> 0 | L25: =Model!L78 -> 0 | M25: =Model!M80 -> 0 | N25: =Model!N80 -> 0
A26: =Model!A79 -> Led Jr prep | B26: =Model!B79 -> 63.7 | C26: =Model!C79 -> 0 | D26: =Model!D79 -> 0 | E26: =Model!E79 -> 0 | F26: =Model!F79 -> 0 | G26: =Model!G79 -> 0 | H26: =Model!H79 -> 0 | I26: =Model!I79 -> 0 | J26: =Model!J79 -> 0 | K26: =Model!K79 -> 0 | L26: =Model!L79 -> 0 | M26: =Model!M77 -> 0 | N26: =Model!N77 -> 0
A27: =Model!A80 -> Led Jr daily | B27: =Model!B80 -> 176.4 | C27: =Model!C80 -> 0 | D27: =Model!D80 -> 0 | E27: =Model!E80 -> 0 | F27: =Model!F80 -> 0 | G27: =Model!G80 -> 0 | H27: =Model!H80 -> 0 | I27: =Model!I80 -> 0 | J27: =Model!J80 -> 0 | K27: =Model!K80 -> 0 | L27: =Model!L80 -> 0 | M27: =Model!M78 -> 0 | N27: =Model!N78 -> 0
A28: =Model!A81 -> Jr Alone prep | B28: =Model!B81 -> 70 | C28: =Model!C81 -> 0 | D28: =Model!D81 -> 0 | E28: =Model!E81 -> 0 | F28: =Model!F81 -> 0 | G28: =Model!G81 -> 0 | H28: =Model!H81 -> 0 | I28: =Model!I81 -> 0 | J28: =Model!J81 -> 0 | K28: =Model!K81 -> 0 | L28: =Model!L81 -> 0 | M28: =Model!M81 -> 0 | N28: =Model!N81 -> 0
A29: =Model!A82 -> Jr Alone daily | B29: =Model!B82 -> 199.5 | C29: =Model!C82 -> 0 | D29: =Model!D82 -> 0 | E29: =Model!E82 -> 0 | F29: =Model!F82 -> 0 | G29: =Model!G82 -> 0 | H29: =Model!H82 -> 0 | I29: =Model!I82 -> 0 | J29: =Model!J82 -> 0 | K29: =Model!K82 -> 0 | L29: =Model!L82 -> 0 | M29: =Model!M82 -> 0 | N29: =Model!N82 -> 0
A30: =Model!A83 -> 0 | B30: =Model!B83 -> 0 | C30: =Model!C83 -> 0 | D30: =Model!D83 -> 0 | E30: =Model!E83 -> 0 | F30: =Model!F83 -> 0 | G30: =Model!G83 -> 0 | H30: =Model!H83 -> 0 | I30: =Model!I83 -> 0 | J30: =Model!J83 -> 0 | K30: =Model!K83 -> 0 | L30: =Model!L83 -> 0 | M30: =Model!M83 -> 0 | N30: =Model!N83 -> 0
A31: =Model!A84 -> AGFS Rates | B31: =Model!B84 -> 0 | C31: =Model!C84 -> 0 | D31: =Model!D84 -> 0 | E31: =Model!E84 -> 0 | F31: =Model!F84 -> 0 | G31: =Model!G84 -> 0 | H31: =Model!H84 -> 0 | I31: =Model!I84 -> 0 | J31: =Model!J84 -> 0 | K31: =Model!K84 -> 0 | L31: =Model!L84 -> 0 | M31: =Model!M84 -> 0 | N31: =Model!N84 -> 0
A32: =Model!A85 -> 0 | B32: =Model!B85 -> basic | C32: =Model!C85 -> evidence above 50 pages (not capped at 10k) | D32: =Model!D85 -> Witnesses uplift | E32: =Model!E85 -> Daily Attendance Fee 3-40 | F32: =Model!F85 -> Daily Attendance Fee 41-50 | G32: =Model!G85 -> Daily Attendance Fee 51+ | H32: =Model!I85 -> 0 | I32: =Model!J85 -> 0 | J32: =Model!K85 -> 0 | K32: =Model!L85 -> 0 | L32: =Model!M85 -> 0 | M32: =Model!N85 -> 0 | N32: =Model!O85 -> 0
A33: =Model!A86 -> QC | B33: =Model!B86 -> 3664.778761 | C33: =Model!C86 -> 2.09159292 | D33: =Model!D86 -> 8.37920354 | E33: =Model!E86 -> 979 | F33: =Model!F86 -> 387 | G33: =Model!G86 -> 414 | H33: =Model!I86 -> 0 | I33: =Model!J86 -> 0 | J33: =Model!K86 -> 0 | K33: =Model!L86 -> 0 | L33: =Model!M86 -> 0 | M33: =Model!N86 -> 0 | N33: =Model!O86 -> 0
A34: =Model!A87 -> Leading Jr | B34: =Model!B87 -> 2720.34 | C34: =Model!C87 -> 1.578318584 | D34: =Model!D87 -> 6.287610619 | E34: =Model!E87 -> 734 | F34: =Model!F87 -> 331 | G34: =Model!G87 -> 356 | H34: =Model!I87 -> 0 | I34: =Model!J87 -> 0 | J34: =Model!K87 -> 0 | K34: =Model!L87 -> 0 | L34: =Model!M87 -> 0 | M34: =Model!N87 -> 0 | N34: =Model!O87 -> 0
A35: =Model!A88 -> Led Jr | B35: =Model!B88 -> 1780.109589 | C35: =Model!C88 -> 1.039380531 | D35: =Model!D88 -> 4.183185841 | E35: =Model!E88 -> 490 | F35: =Model!F88 -> 221 | G35: =Model!G88 -> 237 | H35: =Model!I88 -> 0 | I35: =Model!J88 -> 0 | J35: =Model!K88 -> 0 | K35: =Model!L88 -> 0 | L35: =Model!M88 -> 0 | M35: =Model!N88 -> 0 | N35: =Model!O88 -> 0
A36: =Model!A89 -> Jr Alone | B36: =Model!B89 -> 1990.243902 | C36: =Model!C89 -> 1.257522124 | D36: =Model!D89 -> 6.287610619 | E36: =Model!E89 -> 530 | F36: =Model!F89 -> 266 | G36: =Model!G89 -> 285 | H36: =Model!I89 -> 0 | I36: =Model!J89 -> 0 | J36: =Model!K89 -> 0 | K36: =Model!L89 -> 0 | L36: =Model!M89 -> 0 | M36: =Model!N89 -> 0 | N36: =Model!O89 -> 0
A37: =Model!A91 -> Number of evidence/days not included | B37: =Model!B91 -> - | C37: =Model!C91 -> 50 | D37: =Model!D91 -> 10 | E37: =Model!E91 -> 2 | F37: =Model!F91 -> 40 | G37: =Model!G91 -> 50 | H37: =Model!I91 -> 0 | I37: =Model!J91 -> 0 | J37: =Model!K91 -> 0 | K37: =Model!L91 -> 0 | L37: =Model!M91 -> 0 | M37: =Model!N91 -> 0 | N37: =Model!O91 -> 0
A38: =Model!A92 -> 0 | B38: =Model!B92 -> 0 | C38: =Model!C92 -> 0 | D38: =Model!D92 -> 0 | E38: =Model!E92 -> 0 | F38: =Model!F92 -> 0 | G38: =Model!G92 -> 0 | H38: =Model!H92 -> 0 | I38: =Model!I92 -> 0 | J38: =Model!J92 -> 0 | K38: =Model!K92 -> 0 | L38: =Model!L92 -> 0
A40: VHCC Fee - For information only
A41: =Model!E121 -> 0 | B41: =Model!F121 -> Cost per person | C41: =Model!G121 -> Total cost
A42: =Model!E122 -> QC | B42: =Model!F122 -> 82000 | C42: =Model!G122 -> 0 | D42: =Model!H122 -> *Note relative proportions have not been applied here
A43: =Model!E124 -> Led junior | B43: =Model!F124 -> 48200 | C43: =Model!G124 -> 0
A44: =Model!E123 -> Lead junior | B44: =Model!F123 -> 70000 | C44: =Model!G123 -> 0
A45: =Model!E125 -> Junior alone | B45: =Model!F125 -> 53600 | C45: =Model!G125 -> 0
A46: =Model!E126 -> 0 | B46: =Model!F126 -> 0 | C46: =Model!G126 -> 0
A47: =Model!E127 -> Total | B47: =Model!F127 -> 0 | C47: =Model!G127 -> 0
A49: Adjusted AGFS fee (uncapping PPE and counting both used and unused) - for reference purposes only.
A50: =Model!E150 -> 0 | B50: =Model!F150 -> Cost per person | C50: =Model!G150 -> Total cost
A51: =Model!E151 -> QC | B51: =Model!F151 -> 70400 | C51: =Model!G151 -> 0
A52: =Model!E153 -> Led junior | B52: =Model!F153 -> 36900 | C52: =Model!G153 -> 0
A53: =Model!E152 -> Lead junior | B53: =Model!F152 -> 55500 | C53: =Model!G152 -> 0
A54: =Model!E154 -> Junior alone | B54: =Model!F154 -> 42100 | C54: =Model!G154 -> 0
A55: =Model!E155 -> 0 | B55: =Model!F155 -> 0 | C55: =Model!G155 -> 0
A56: =Model!E156 -> Total | B56: =Model!F156 -> 0 | C56: =Model!G156 -> 0
A58: This is the VHCC fee tweaked to the relative payments of the Adjusted AGFS. This has been added in at the request of the HCC.
A59: =Model!E159 -> 0 | B59: =Model!F159 -> Cost per person | C59: =Model!G159 -> Total cost
A60: =Model!E160 -> QC | B60: =Model!F160 -> 87200 | C60: =Model!G160 -> 0
A61: =Model!E162 -> Led junior | B61: =Model!F162 -> 45800 | C61: =Model!G162 -> 0
A62: =Model!E161 -> Lead junior | B62: =Model!F161 -> 68700 | C62: =Model!G161 -> 0
A63: =Model!E163 -> Junior alone | B63: =Model!F163 -> 52100 | C63: =Model!G163 -> 0
A64: =Model!E164 -> 0 | B64: =Model!F164 -> 0 | C64: =Model!G164 -> 0
A65: =Model!E165 -> Total | B65: =Model!F165 -> 0 | C65: =Model!G165 -> 0
A73: =Model!A129 -> 0 | B73: =Model!B129 -> 0 | C73: =Model!C129 -> 0 | D73: =Model!D129 -> 0 | E73: =Model!E129 -> 0 | G73: =Model!G129 -> 0 | H73: =Model!H129 -> 0 | I73: =Model!I129 -> 0 | J73: =Model!J129 -> 0 | K73: =Model!K129 -> 0 | L73: =Model!L129 -> 0
A74: =Model!A130 -> 0 | B74: =Model!B130 -> 0 | C74: =Model!C130 -> 0 | D74: =Model!D130 -> 0 | E74: =Model!E130 -> 0 | F74: =Model!F130 -> 0 | G74: =Model!G130 -> 0 | H74: =Model!H130 -> 0 | I74: =Model!I130 -> 0 | J74: =Model!J130 -> 0 | K74: =Model!K130 -> 0 | L74: =Model!L130 -> 0

Sheet Model
A1: Assumptions
B2: Fraud | C2: Murder | D2: Terrorism
A3: General assumptions | B3: Central | C3: Central
A4: Used Evidence pages | B4: ='Data & Assumptions'!C25 -> 1 | C4: ='Data & Assumptions'!D25 -> 1 | D4: ='Data & Assumptions'!E25 -> ?
A5: Unused to used ratio | B5: ='Data & Assumptions'!C26 -> 0.25 | C5: ='Data & Assumptions'!D26 -> 1 | D5: ='Data & Assumptions'!E26 -> ?
A6: Mins per used page | B6: ='Data & Assumptions'!C27 -> 1.25 | C6: ='Data & Assumptions'!D27 -> 1.25 | D6: ='Data & Assumptions'!E27 -> ?
A7: Mins per unused page | B7: ='Data & Assumptions'!C28 -> 0.5 | C7: ='Data & Assumptions'!D28 -> 1 | D7: ='Data & Assumptions'!E28 -> ?
A8: Other prep (hours) | B8: ='Data & Assumptions'!C29 -> 250 | C8: ='Data & Assumptions'!D29 -> 530 | D8: ='Data & Assumptions'!E29 -> ?
A9: Additional Trial hours prep per day | B9: ='Data & Assumptions'!C30 -> 2 | C9: ='Data & Assumptions'!D30 -> 2 | D9: ='Data & Assumptions'!E30 -> ?
A10: Trial days expected | B10: ='Data & Assumptions'!C31 -> 1 | C10: ='Data & Assumptions'!D31 -> 1 | D10: ='Data & Assumptions'!E31 -> ?
A11: Witness Prep hours per Non-Expert | B11: ='Data & Assumptions'!C32 -> 0 | C11: ='Data & Assumptions'!D32 -> 0.5 | D11: ='Data & Assumptions'!E32 -> ?
A12: Witness Prep hours per Expert | B12: ='Data & Assumptions'!C33 -> 0 | C12: ='Data & Assumptions'!D33 -> 6 | D12: ='Data & Assumptions'!E33 -> ?
A14: VHCC rates (from regulations)
B15: Cat 1 | C15: Cat 2 | D15: Cat 3
A16: QC prep | B16: =Regs!K6 -> 101.5 | C16: =Regs!L6 -> 79.1 | D16: =Regs!M6 -> 63.7
A17: QC daily | B17: =Regs!K7 -> 333.2 | C17: =Regs!L7 -> 333.2 | D17: =Regs!M7 -> 333.2
A18: Lead Jr prep | B18: =Regs!K8 -> 88.9 | C18: =Regs!L8 -> 70 | D18: =Regs!M8 -> 55.3
A19: Lead Jr daily | B19: =Regs!K9 -> 273 | C19: =Regs!L9 -> 273 | D19: =Regs!M9 -> 273
A20: Led Jr prep | B20: =Regs!K10 -> 63.7 | C20: =Regs!L10 -> 51.1 | D20: =Regs!M10 -> 42.7
A21: Led Jr daily | B21: =Regs!K11 -> 176.4 | C21: =Regs!L11 -> 176.4 | D21: =Regs!M11 -> 176.4
A22: Jr Alone prep | B22: =Regs!K12 -> 70 | C22: =Regs!L12 -> 57.4 | D22: =Regs!M12 -> 49
A23: Jr Alone daily | B23: =Regs!K13 -> 199.5 | C23: =Regs!L13 -> 199.5 | D23: =Regs!M13 -> 199.5
A26: AGFS Rates (from Regulations)
B27: =Regs!K52 -> basic | C27: =Regs!L52 -> evidence above 50 pages (not capped at 10k) | D27: =Regs!M52 -> Witnesses uplift | E27: =Regs!N52 -> Daily Attendance Fee 3-40 | F27: =Regs!O52 -> Daily Attendance Fee 41-50 | G27: =Regs!P52 -> Daily Attendance Fee 51+
A28: QC | B28: =Regs!K53 -> 2856 | C28: =Regs!L53 -> 1.63 | D28: =Regs!M53 -> 6.53 | E28: =Regs!N53 -> 979 | F28: =Regs!O53 -> 387 | G28: =Regs!P53 -> 414
A29: Leading Jr | B29: =Regs!K54 -> 2142 | C29: =Regs!L54 -> 1.23 | D29: =Regs!M54 -> 4.9 | E29: =Regs!N54 -> 734 | F29: =Regs!O54 -> 331 | G29: =Regs!P54 -> 356
A30: Led Jr | B30: =Regs!K55 -> 1428 | C30: =Regs!L55 -> 0.81 | D30: =Regs!M55 -> 3.26 | E30: =Regs!N55 -> 490 | F30: =Regs!O55 -> 221 | G30: =Regs!P55 -> 237
A31: Jr Alone | B31: =Regs!K56 -> 1632 | C31: =Regs!L56 -> 0.98 | D31: =Regs!M56 -> 4.9 | E31: =Regs!N56 -> 530 | F31: =Regs!O56 -> 266 | G31: =Regs!P56 -> 285
A33: Uplifts
A34: Cat 1
A35: QC | B35: =QCPrep_Cat1/QCPrep_Cat2 -> 1.283185841 | C35: =QCPrep_Cat1/QCPrep_Cat2 -> 1.283185841 | D35: =QCPrep_Cat1/QCPrep_Cat2 -> 1.283185841 | E35: =QCDaily_Cat1/QCDaily_Cat2 -> 1 | F35: =QCDaily_Cat1/QCDaily_Cat2 -> 1 | G35: =QCDaily_Cat1/QCDaily_Cat2 -> 1
A36: Leading Jr | B36: =LeadJrPrep_Cat1/LeadJrPrep_Cat2 -> 1.27 | C36: =QCPrep_Cat1/QCPrep_Cat2 -> 1.283185841 | D36: 1.283185841 | E36: =LeadJrDaily_Cat1/LeadJrDaily_Cat2 -> 1 | F36: =LeadJrDaily_Cat1/LeadJrDaily_Cat2 -> 1 | G36: =LeadJrDaily_Cat1/LeadJrDaily_Cat2 -> 1
A37: Led Jr | B37: =LedJrPrep_Cat1/LedJrPrep_Cat2 -> 1.246575342 | C37: 1.283185841 | D37: 1.283185841 | E37: =LedJrDaily_Cat1/LedJrDaily_Cat2 -> 1 | F37: =LedJrDaily_Cat1/LedJrDaily_Cat2 -> 1 | G37: =LedJrDaily_Cat1/LedJrDaily_Cat2 -> 1
A38: Jr Alone | B38: =JrAlonePrepCat1/JrAlonePrep_Cat2 -> 1.219512195 | C38: 1.283185841 | D38: 1.283185841 | E38: =JrAloneDaily_Cat1/JrAloneDaily_Cat2 -> 1 | F38: =JrAloneDaily_Cat1/JrAloneDaily_Cat2 -> 1 | G38: =JrAloneDaily_Cat1/JrAloneDaily_Cat2 -> 1
A40: Cat 2
A41: QC | B41: 1 | C41: 1 | D41: 1 | E41: 1 | F41: 1 | G41: 1
A42: Leading Jr | B42: 1 | C42: 1 | D42: 1 | E42: 1 | F42: 1 | G42: 1
A43: Led Jr | B43: 1 | C43: 1 | D43: 1 | E43: 1 | F43: 1 | G43: 1
A44: Jr Alone | B44: 1 | C44: 1 | D44: 1 | E44: 1 | F44: 1 | G44: 1
A46: Cat 3
A47: QC | B47: =QCPrep_Cat3/QCPrep_Cat2 -> 0.8053097345 | C47: =QCPrep_Cat3/QCPrep_Cat2 -> 0.8053097345 | D47: =QCPrep_Cat3/QCPrep_Cat2 -> 0.8053097345 | E47: =QCDaily_Cat3/QCDaily_Cat2 -> 1 | F47: =QCDaily_Cat3/QCDaily_Cat2 -> 1 | G47: =QCDaily_Cat3/QCDaily_Cat2 -> 1
A48: Leading Jr | B48: =LeadJrPrep_Cat3/LeadJrPrep_Cat2 -> 0.79 | C48: =LeadJrPrep_Cat3/LeadJrPrep_Cat2 -> 0.79 | D48: =LeadJrPrep_Cat3/LeadJrPrep_Cat2 -> 0.79 | E48: =LeadJrDaily_Cat3/LeadJrDaily_Cat2 -> 1 | F48: =LeadJrDaily_Cat3/LeadJrDaily_Cat2 -> 1 | G48: =LeadJrDaily_Cat3/LeadJrDaily_Cat2 -> 1
A49: Led Jr | B49: =LedJrPrep_Cat3/LedJrPrep_Cat2 -> 0.8356164384 | C49: =LedJrPrep_Cat3/LedJrPrep_Cat2 -> 0.8356164384 | D49: =LedJrPrep_Cat3/LedJrPrep_Cat2 -> 0.8356164384 | E49: =LedJrDaily_Cat3/LedJrDaily_Cat2 -> 1 | F49: =LedJrDaily_Cat3/LedJrDaily_Cat2 -> 1 | G49: =LedJrDaily_Cat3/LedJrDaily_Cat2 -> 1
A50: Jr Alone | B50: =JrAlonePrep_Cat3/JrAlonePrep_Cat2 -> 0.8536585366 | C50: =JrAlonePrep_Cat3/JrAlonePrep_Cat2 -> 0.8536585366 | D50: =JrAlonePrep_Cat3/JrAlonePrep_Cat2 -> 0.8536585366 | E50: =JrAloneDaily_Cat3/JrAloneDaily_Cat2 -> 1 | F50: =JrAloneDaily_Cat3/JrAloneDaily_Cat2 -> 1 | G50: =JrAloneDaily_Cat3/JrAloneDaily_Cat2 -> 1
A52: Number of evidence/days not included | B52: - | C52: 50 | D52: 10 | E52: 2 | F52: 40 | G52: 50
A54: Inputs
B56: Case ID | C56: Cat | D56: Used Evidence (pages) | E56: Unused Material (pages) | F56: Trial Days | G56: Number of QCs | H56: Number of Leading Juniors | I56: Number of Led Juniors | J56: Number of Junior Alone | K56: Offence Type | L56: Number of Witnesses (non expert) | M56: Number of Witnesses (expert)
A57: =Inputs!A4 -> 0 | B57: =Inputs!B4 -> 555 | C57: =Inputs!C4 -> Cat 1 | D57: =Inputs!D4 -> 777 | E57: =Inputs!E4 -> 6666 | F57: =Inputs!F4 -> 100 | G57: =Inputs!G4 -> 0 | H57: =Inputs!H4 -> 0 | I57: =Inputs!I4 -> 0 | J57: =Inputs!J4 -> 0 | K57: =Inputs!K4 -> Fraud | L57: =Inputs!L4 -> 0 | M57: =Inputs!M4 -> 0
A60: Assumptions used for this case
A62: Type of case: | B62: =$K$57 -> Fraud
A63: =A4 -> Used Evidence pages | B63: =OFFSET($A$2,MATCH($A63,$A$2:$A$12,0)-1,MATCH($B$62,$A$2:$D$2,0)-1) -> 1
A64: =A5 -> Unused to used ratio | B64: 0.25
A65: Mins per used page | B65: 1.25
A66: Mins per unused page | B66: 0.5
A67: Other prep (hours) | B67: 250
A68: Additional Trial hours prep per day | B68: 2
A69: Trial days expected | B69: 1
A70: Witness Prep hours per Non-Expert | B70: 0
A71: Witness Prep hours per Expert | B71: 0
A72: Category of Case | B72: =$C$57 -> Cat 1
A74: VHCC
A75: QC prep | B75: =OFFSET($A$15,MATCH($A75,$A$15:$A$23,0)-1,MATCH($B$72,$A$15:$D$15,0)-1) -> 101.5
A76: QC daily | B76: 333.2
A77: Lead Jr prep | B77: 88.9
A78: Lead Jr daily | B78: 273
A79: Led Jr prep | B79: 63.7
A80: Led Jr daily | B80: 176.4
A81: Jr Alone prep | B81: 70
A82: Jr Alone daily | B82: 199.5
A84: AGFS Rates
B85: =B27 -> basic | C85: =C27 -> evidence above 50 pages (not capped at 10k) | D85: Witnesses uplift | E85: =E27 -> Daily Attendance Fee 3-40 | F85: =F27 -> Daily Attendance Fee 41-50 | G85: =G27 -> Daily Attendance Fee 51+
A86: =A28 -> QC | B86: =B28*OFFSET($A$27,MATCH($A86,$A$28:$A$31,0)+MATCH($B$72,$A$27:$A$50,0)-1,MATCH(B$85,$A$27:$G$27,0)-1) -> 3664.778761 | C86: 2.09159292 | D86: 8.37920354 | E86: 979 | F86: 387 | G86: 414
A87: =A29 -> Leading Jr | B87: 2720.34 | C87: 1.578318584 | D87: 6.287610619 | E87: 734 | F87: 331 | G87: 356
A88: Led Jr | B88: 1780.109589 | C88: 1.039380531 | D88: 4.183185841 | E88: 490 | F88: 221 | G88: 237
A89: Jr Alone | B89: 1990.243902 | C89: 1.257522124 | D89: 6.287610619 | E89: 530 | F89: 266 | G89: 285
A91: =A52 -> Number of evidence/days not included | B91: =B52 -> - | C91: =C52 -> 50 | D91: 10 | E91: 2 | F91: 40 | G91: 50
A97: VHCC
A98: 1. Work out the number of preparation hours for Used and Unused evidence (only a proportion of unused is counted), multiplying the number of pages by minutes taken to read a page . An assumption is made that only 25% of the unused is relevant to the defendant for fraud cases only.
A99: Used evidence | B99: =UsedEvi*UsedEvi_min/60 -> 16.1875 | C99: hours
A100: Unused evidence | B100: =UnusedMat*UnusedRatio*Unused_mins/60 -> 13.8875 | C100: hours
A102: 2 .Work out the hours spent preparing for trial, hours for witness prep and other prep
A103: Hours preparing for trial | B103: =TrialPrep*TrialDays -> 200
A104: Other prep | B104: =OtherPrep -> 250
A105: Witness prep | B105: =(WitNonExpertHrs*WitNonExpert)+(WitExpertHrs*WitExpert) -> 0
A106: Total hours for prep | B106: =SUM(B99:B100,B103:B105) -> 480.075
A108: 3. Multiply the total hours of preparation by the VHCC prep rate for the relevant advocate type and case category.
A109: QC prep | B109: =QCPrep_final*B106 -> 48727.6125
A110: Lead junior | B110: =LeadJrPrep_final*B106 -> 42678.6675
A111: Led junior | B111: =LedJrPrep_final*B106 -> 30580.7775
A112: Junior alone | B112: =JrAloneprep_final*B106 -> 33605.25
A114: 4. Multiply the trial length by the VHCC daily rate, again for the relevant advocate type and case category.
A115: QC trial | B115: =TrialDays*QCDaily_final -> 33320
A116: Lead junior | B116: =TrialDays*LeadJrDaily_final -> 27300
A117: Led junior | B117: =TrialDays*LedJrDaily_Final -> 17640
A118: Junior alone | B118: =TrialDays*JrAloneDaily_final -> 19950
A120: 5. Add spend on prep and hearings together, then multiply by the number of that advocate type.
A121: Total prep and trial length | B121: Cost per person | C121: Total cost | D121: Rounded figures | F121: Cost per person | G121: Total cost
A122: QC | B122: =(B109+B115) -> 82047.6125 | C122: =(B109+B115)*QCs -> 0 | E122: QC | F122: =MROUND(B122,100) -> 82000 | G122: 0 | H122: *Note relative proportions have not been applied here
A123: Lead junior | B123: =(B110+B116) -> 69978.6675 | C123: =(B110+B116)*LeadJnr -> 0 | E123: Lead junior | F123: 70000 | G123: 0
A124: Led junior | B124: =(B111+B117) -> 48220.7775 | C124: =(B111+B117)*LedJnr -> 0 | E124: Led junior | F124: 48200 | G124: 0
A125: Junior alone | B125: =(B112+B118) -> 53555.25 | C125: =(B112+B118)*JnrAlone -> 0 | E125: Junior alone | F125: 53600 | G125: 0
A127: Total | B127: =SUM(B122:B125) -> 253802.3075 | C127: =SUM(C122:C125) -> 0 | E127: Total | G127: =SUM(G122:G125) -> 0
A131: Adjusted AGFS (uncapping PPE and counting both used and unused)
A132: 1.Add the number of Used and Unused evidence pages together.
A133: - In the normal AGFS, unused evidence is not paid for.
A134: Total evidence | B134: =UsedEvi+(UnusedMat*UnusedRatio) -> 2443.5
A136: 2. Apply AGFS Basic Fee (includes a payment for the first 50 pages of evidence and first 2 days at trial). Then add fee per evidence page above 50 pages. Not capped at 10k pages (like usual AGFS). Still to add witness prep hours when AGFS rates are confirmed. Witness formulae will need checking if witness prep is used
A137: QC | B137: =QCBasic+(QCevi*($B$134-$C$91))+(QCWit*(WitNonExpert+IF(WitExpert>0,WitExpert-$D$52,0))) -> 8671.006416
A138: Lead junior | B138: =LeadBasic+(LeadEvi*($B$134-$C$91))+(LeadJrWit*(WitNonExpert+IF(WitExpert>0,WitExpert-$D$52,0))) -> 6498.045531
A139: Led junior | B139: =LedBasic+(LedEvi*($B$134-$C$91))+(LedJrWit*(WitNonExpert+IF(WitExpert>0,WitExpert-$D$52,0))) -> 4267.86689
A140: Junior alone | B140: =JrAloneBasic+(JrAloneEvi*($B$134-$C$91))+(JrAloneWit*(WitNonExpert+IF(WitExpert>0,WitExpert-$D$52,0))) -> 5000.123106
A142: 3. Apply AGFS Trial formula:
A143: - Subtract the first 2 days. The next 38 days are paid at a high rate, the following 10 at a low rate. Days 51+ are paid at a slightly higher rate than the previous 10 days.
A144: QC | B144: =IF(TrialDays>=50,(($F$91-$E$91)*QCDAF40)+(($G$91-$F$91)*QCDAF50)+((TrialDays-$G$91)*QCDAF51),(($F$91-$E$91)*QCDAF40)+(($G$91-$F$91)*QCDAF50)) -> 61772
A145: Lead junior | B145: =IF(TrialDays>=50,(($F$91-$E$91)*LeadDAF40)+(($G$91-$F$91)*LeadDAF50)+((TrialDays-$G$91)*LeadDAF51),(($F$91-$E$91)*LeadDAF40)+(($G$91-$F$91)*LeadDAF50)) -> 49002
A146: Led junior | B146: =IF(TrialDays>=50,(($F$91-$E$91)*LedDAF40)+(($G$91-$F$91)*LedDAF50)+((TrialDays-$G$91)*LedDAF51),(($F$91-$E$91)*LedDAF40)+(($G$91-$F$91)*LedDAF50)) -> 32680
A147: Junior alone | B147: =IF(TrialDays>=50,(($F$91-$E$91)*JrAloneDAF40)+(($G$91-$F$91)*JrAloneDAF50)+((TrialDays-$G$91)*JrAloneDAF51),(($F$91-$E$91)*JrAloneDAF40)+(($G$91-$F$91)*JrAloneDAF50)) -> 37050
A149: 4. Add 2. and 3. together, then multiply by the number of that advocate type.
B150: Cost per person | C150: Total cost | D150: Rounded figures | F150: Cost per person | G150: Total cost
A151: QC | B151: =(B137+B144) -> 70443.00642 | C151: =(B137+B144)*QCs -> 0 | E151: QC | F151: =MROUND(B151,100) -> 70400 | G151: 0
A152: Lead junior | B152: =(B138+B145) -> 55500.04553 | C152: =(B138+B145)*LeadJnr -> 0 | E152: Lead junior | F152: 55500 | G152: 0
A153: Led junior | B153: =(B139+B146) -> 36947.86689 | C153: =(B139+B146)*LedJnr -> 0 | E153: Led junior | F153: 36900 | G153: 0
A154: Junior alone | B154: =(B140+B147) -> 42050.12311 | C154: =(B140+B147)*JnrAlone -> 0 | E154: Junior alone | F154: 42100 | G154: 0
A156: Total | B156: =SUM(B151:B154) -> 204941.0419 | C156: =SUM(C151:C154) -> 0 | E156: Total | G156: =SUM(G151:G154) -> 0
A158: This is the VHCC fee tweaked to the relative payments of the Adjusted AGFS. This has been added in at the request of the HCC. If this is to pay advocates who join later in the trial, it may be that they should only be paid a proportion of the total cost.
B159: Cost per person | D159: Rounded figures | F159: Cost per person | G159: Total cost
A160: QC | B160: =B151/SUM($B$151:$B$154)*SUM($B$122:$B$125) -> 87237.7607 | C160: =B160*QCs -> 0 | E160: QC | F160: =MROUND(B160,100) -> 87200 | G160: =$F160*QCs -> 0
A161: Lead junior | B161: =B152/SUM($B$151:$B$154)*SUM($B$122:$B$125) -> 68732.15579 | C161: =B161*LeadJnr -> 0 | E161: Lead junior | F161: 68700 | G161: =$F161*LeadJnr -> 0
A162: Led junior | B162: 45756.83711 | C162: =B162*LedJnr -> 0 | E162: Led junior | F162: 45800 | G162: =$F162*LedJnr -> 0
A163: Junior alone | B163: 52075.55389 | C163: =B163*JnrAlone -> 0 | E163: Junior alone | F163: 52100 | G163: =$F163*JnrAlone -> 0
F164: 0
B165: =SUM(B160:B163) -> 253802.3075 | C165: =SUM(C160:C163) -> 0 | E165: Total | G165: =SUM(G160:G163) -> 0
E166: Difference to VHCC | G166: =G127-G165 -> 0

Sheet Data & Assumptions
E1: Data & Assumptions Register
B4: Quality | C4: Red | D4: Low quality | E4: Highly uncertain / little evidence to support the assumption; Data is not well understood / has major quality issues; Significant impact on analysis.
C5: Amber | D5: Mid quality | E5: Some evidence to support the assumption; Data is well understood. However there are quality issues; Minimal impact on the analysis outputs.
C6: Green | D6: High quality | E6: Reliable assumption, well understood and/or documented; Data is well understood and there are no major issues; Amy minor issues are understood and documented.
B8: Impact | C8: Red | D8: Critical impact | E8: Core assumptions of the analysis; There are concerns about the suitability of the data set for this application; The output would be drastically affected by their change.
C9: Amber | D9: Medium impact | E9: Assumptions with a relevant, even if not critical, impact on the outputs; Not the ideal data set for the analysis, but the best available at the time.
C10: Green | D10: Limited impact | E10: Marginal assumptions: their changes have no or limited impact on the outputs; Data is best available for required purpose.
B13: Item | C13: Data or Assumption? | D13: Source / Business Owner | E13: Plain English Description | F13: Analytical Owner | G13: Granularity | H13: Time Period Covered | I13: Quality RAG Rating | J13: Impact RAG Rating | K13: Manipulation from Source | L13: Comments
B14: VHCC Inputs | C14: Data | D14: LAA | E14: These are the inputs per case received from the LAA | F14: MoJ ASD | I14: Green | J14: Red
B15: VHCC Rates (from Regs) | C15: Data | D15: VHCC group | E15: In VHCC cases barristers are paid by the hour for preparation, with the hourly rate paid dependent upon the case category. Preparation includes the time taken to consider used and unused evidence pages, preparing for court time, conferences, dealing with experts, liaising with defence and prosecution amongst other things. Barristers receive a daily rate for attendance at the crown court. | F15: MoJ ASD | I15: Green | J15: Red | L15: Part 3: http://www.legislation.gov.uk/uksi/2013/2803/schedule/2/made
B16: AGFS rates (from Regs) | C16: Data | D16: VHCC group | E16: In AGFS cases that run to trial barristers, receive a brief fee, a witness uplift, an evidence uplift, and daily attendance fees. In certain circumstances special preparation payments are made. The basic fee includes the cost of five, conferences, hearings and mentions. The witness uplift is payable for each witness, the first 10 witnesses are included in the basic fee so do not receive an uplift. The evidence uplift is paid for each evidence page. The first 50 pages are included in the basic fee so do not receive an uplift. The uplift is capped at 10,000 pages of evidence, any additional pages will be paid by special prep. The evidence uplift only applies to used evidence. The daily attendance rate is paid for each day spent in court. The first two days are included in the basic fee so do not receive additional payment. The rate at which days are paid for fall considerably after 40 days. | F16: MoJ ASD | I16: Green | J16: Red | L16: Offence K - Part 2, para 4 and 5, p21 and para 30 p38: http://www.legislation.gov.uk/uksi/2013/435/pdfs/uksi_20130435_en.pdf
B17: Final calculation is the lower of AGFS or VHCC rates | C17: Assumption | D17: VHCC group | E17: If the AGFS model is lower, use that fee. If the VHCC fee is lower, look at the relative proportions paid out to each advocate type under the AGFS but cap it to VHCC fee. | F17: MoJ ASD | I17: Amber | J17: Amber
B18: Adjusting AGFS rates for Cat 1 and 3, PPE over 10k | C18: Assumption | D18: VHCC group | E18: Unlike normal AGFS, not capped at 10k.We assume AGFS rates are Cat 2 and calculate Cat 1 and 3 by looking at the proportionate differences in the VHCC Cat 1, 2, 3 rates | F18: MoJ ASD | I18: Green | J18: Amber
B19: Stage payments | C19: Assumption | D19: VHCC group | E19: Stages are split as 3 equal payments | F19: MoJ ASD | I19: Green | J19: Green
B20: General assumptions | C20: Assumption | D20: VHCC group | E20: General assumptions for fraud, murder and terrorism are agreed below. Agreed that witness prep is counted differently for murder and fraud. Leaving terrorism until we have a case. | F20: MoJ ASD | I20: Red | J20: Red
B21: General assumptions | C21: Assumption | D21: VHCC group | E21: Using the AGFS offence group for high cost fraud (Offence K) only. Agreed that we use offence K for murder cases too - There is only a difference for the led junior rates, which are 14% higher in offence A than K. | F21: MoJ ASD | I21: Amber | J21: Amber
C23: Fraud | D23: Murder | E23: Terrorism
B24: General assumptions | C24: Central | D24: Central
B25: Used Evidence pages | C25: 1 | D25: 1 | E25: ?
B26: Unused to used ratio | C26: 0.25 | D26: 1 | E26: ?
B27: Mins per used page | C27: 1.25 | D27: 1.25 | E27: ?
B28: Mins per unused page | C28: 0.5 | D28: 1 | E28: ?
B29: Other prep (hours) | C29: 250 | D29: 530 | E29: ?
B30: Additional Trial hours prep per day | C30: 2 | D30: 2 | E30: ?
B31: Trial days expected (note, this might be dropped as it is always 100%) | C31: 1 | D31: 1 | E31: ?
B32: Witness Prep hours per Non-Expert | C32: 0 | D32: 0.5 | E32: ?
B33: Witness Prep hours per Expert | C33: 0 | D33: 6 | E33: ?

Sheet Regs
A1: VHCC rates
A2: PART 3
A3: Table 1
A4: Preparation (hourly rates) | J4: VHCC rates
B5: Category 1 (£) | C5: Category 2 (£) | D5: Category 3 (£) | E5: Category 4 (£) | F5: Standard Rates (£) | K5: Cat 1 | L5: Cat 2 | M5: Cat 3
A6: Litigator | J6: QC prep | K6: =B13 -> 101.5 | L6: =C13 -> 79.1 | M6: 63.7
A7: Level A | B7: 101.5 | C7: 79.1 | D7: 63.7 | E7: 63.7 | F7: 39.03 | J7: QC daily | K7: =$D$30 -> 333.2 | L7: =$D$30 -> 333.2 | M7: 333.2
A8: Level B | B8: 88.9 | C8: 70 | D8: 55.3 | E8: 55.3 | F8: 33.08 | J8: Lead Jr prep | K8: =B14 -> 88.9 | L8: =C14 -> 70 | M8: =D14 -> 55.3
A9: Level C | B9: 58.8 | C9: 45.5 | D9: 35.7 | E9: 35.7 | F9: 24.5 | J9: Lead Jr daily | K9: =$D$31 -> 273 | L9: =$D$31 -> 273 | M9: 273
A10: Pupil/junior | B10: 31.5 | C10: 25.2 | D10: 21 | E10: 21 | J10: Led Jr prep | K10: =B15 -> 63.7 | L10: =C15 -> 51.1 | M10: =D15 -> 42.7
J11: Led Jr daily | K11: =$D$32 -> 176.4 | L11: =$D$32 -> 176.4 | M11: 176.4
A12: Barrister | J12: Jr Alone prep | K12: =B16 -> 70 | L12: =C16 -> 57.4 | M12: =D16 -> 49
A13: QC | B13: 101.5 | C13: 79.1 | D13: 63.7 | E13: 63.7 | J13: Jr Alone daily | K13: =$D$33 -> 199.5 | L13: =$D$33 -> 199.5 | M13: 199.5
A14: Leading junior | B14: 88.9 | C14: 70 | D14: 55.3 | E14: 55.3
A15: Led junior | B15: 63.7 | C15: 51.1 | D15: 42.7 | E15: 42.7
A16: Junior alone | B16: 70 | C16: 57.4 | D16: 49 | E16: 49
A17: 2nd Led junior | B17: 44.1 | C17: 35 | D17: 30.1 | E17: 30.1
A19: Solicitor Advocate
A20: Leading level A | B20: 101.5 | C20: 79.1 | D20: 63.7 | E20: 63.7
A21: Led level A | B21: 88.9 | C21: 70 | D21: 55.3 | E21: 55.3
A22: Leading level B | B22: 88.9 | C22: 70 | D22: 55.3 | E22: 55.3
A23: Led level B | B23: 72.8 | C23: 60.2 | D23: 46.2 | E23: 46.2
A24: Level A alone | B24: 91.7 | C24: 76.3 | D24: 61.6 | E24: 61.6
A25: Level B alone | B25: 79.1 | C25: 66.5 | D25: 52.5 | E25: 52.5
A26: Second advocate | B26: 44.1 | C26: 35 | D26: 30.1 | E26: 30.1
A27: Table 2
A28: Advocacy rates
B29: Preliminary hearing (£) | C29: Half day (£) | D29: Full day (£)
A30: QC | B30: 79.1 | C30: 166.6 | D30: 333.2
A31: Leading junior | B31: 60.2 | C31: 136.5 | D31: 273
A32: Led junior | B32: 40.6 | C32: 88.2 | D32: 176.4
A33: Junior alone | B33: 46.9 | C33: 100.1 | D33: 199.5
A34: 2nd Led junior | B34: 23.8 | C34: 44.8 | D34: 89.6
A35: Noting junior | B35: 20.3 | C35: 38.5 | D35: 76.3
A36: Table 3
A37: Attendance at court with Advocate (hourly rates for litigators)
B38: £
A39: Level A | B39: 29.58
A40: Level B | B40: 23.8
A41: Level C | B41: 14.35
A42: Table 4
A43: Travelling, waiting and mileage
B44: £
A45: Travelling (hourly rates) | B45: 25.00 (up to a maximum of 4 hours in one day)
A46: Waiting (hourly rates) | B46: 25
A47: Mileage | B47: 00.45 per mile”
A50: AGFS rates
A51: Para 5 | B51: http://www.legislation.gov.uk/uksi/2013/435/pdfs/uksi_20130435_en.pdf | J51: AGFS Rates (from Regulations)
A52: Table of fees | K52: basic | L52: evidence above 50 pages (not capped at 10k) | M52: Witnesses uplift | N52: Daily Attendance Fee 3-40 | O52: Daily Attendance Fee 41-50 | P52: Daily Attendance Fee 51+
A53: 5. For the purposes of paragraph 4 the basic fee (B), the daily attendance fee (D), the evidence | J53: QC | K53: =B$71 -> 2856 | L53: =D$71 -> 1.63 | M53: =E$71 -> 6.53 | N53: =C$71 -> 979 | O53: =B126 -> 387 | P53: =C126 -> 414
A54: uplift (E) and the witness uplift (W) appropriate to any offence are those specified in the table | J54: Leading Jr | K54: =B$83 -> 2142 | L54: =D$83 -> 1.23 | M54: =E$83 -> 4.9 | N54: =C$83 -> 734 | O54: =B138 -> 331 | P54: =C138 -> 356
A55: following this paragraph in accordance with the Class within which that offence falls. | J55: Led Jr | K55: =B$95 -> 1428 | L55: =D$95 -> 0.81 | M55: =E$95 -> 3.26 | N55: =C$95 -> 490 | O55: =B150 -> 221 | P55: =C150 -> 237
A56: Table of Fees and Uplifts | J56: Jr Alone | K56: =B$107 -> 1632 | L56: =D$107 -> 0.98 | M56: =E$107 -> 4.9 | N56: =C$107 -> 530 | O56: =B162 -> 266 | P56: =C162 -> 285
A58: Class of Offence | B58: Basic Fee (B) | C58: Daily Attendance Fee (D) | D58: Evidence Uplift (E) | E58: Witness Uplift (W)
A59: (£) (£) (£) (£)
A60: QC
A61: A | B61: 2856 | C61: 979 | D61: 1.63 | E61: 6.53
A62: B | B62: 2529 | C62: 857 | D62: 1.63 | E62: 6.53
A63: C | B63: 1968 | C63: 816 | D63: 1.63 | E63: 6.53
A64: D | B64: 2284 | C64: 816 | D64: 1.63 | E64: 6.53
A65: E | B65: 1514 | C65: 612 | D65: 1.63 | E65: 6.53
A66: F | B66: 1514 | C66: 612 | D66: 1.63 | E66: 6.53
A67: G | B67: 1514 | C67: 612 | D67: 1.63 | E67: 6.53
A68: H | B68: 1903 | C68: 816 | D68: 1.63 | E68: 6.53
A69: I | B69: 2122 | C69: 816 | D69: 1.63 | E69: 6.53
A70: J | B70: 2856 | C70: 979 | D70: 1.63 | E70: 6.53
A71: K | B71: 2856 | C71: 979 | D71: 1.63 | E71: 6.53
A72: Leading Junior
A73: A | B73: 2142 | C73: 734 | D73: 1.23 | E73: 4.9
A74: B | B74: 1897 | C74: 643 | D74: 1.23 | E74: 4.9
A75: C | B75: 1476 | C75: 612 | D75: 1.23 | E75: 4.9
A76: D | B76: 1714 | C76: 612 | D76: 1.23 | E76: 4.9
A77: E | B77: 1136 | C77: 459 | D77: 1.23 | E77: 4.9
A78: F | B78: 1136 | C78: 459 | D78: 1.23 | E78: 4.9
A79: G | B79: 1136 | C79: 459 | D79: 1.23 | E79: 4.9
A80: H | B80: 1427 | C80: 612 | D80: 1.23 | E80: 4.9
A81: I | B81: 1592 | C81: 612 | D81: 1.23 | E81: 4.9
A82: J | B82: 2142 | C82: 734 | D82: 1.23 | E82: 4.9
A83: K | B83: 2142 | C83: 734 | D83: 1.23 | E83: 4.9
A84: Led Junior
A85: A | B85: 1632 | C85: 490 | D85: 0.81 | E85: 3.26
A86: B | B86: 1265 | C86: 428 | D86: 0.81 | E86: 3.26
A87: C | B87: 898 | C87: 408 | D87: 0.81 | E87: 3.26
A88: D | B88: 1125 | C88: 408 | D88: 0.81 | E88: 3.26
A89: E | B89: 694 | C89: 306 | D89: 0.81 | E89: 3.26
A90: F | B90: 694 | C90: 306 | D90: 0.81 | E90: 3.26
A91: G | B91: 694 | C91: 306 | D91: 0.81 | E91: 3.26
A92: H | B92: 816 | C92: 408 | D92: 0.81 | E92: 3.26
A93: I | B93: 979 | C93: 408 | D93: 0.81 | E93: 3.26
A94: J | B94: 1632 | C94: 490 | D94: 0.81 | E94: 3.26
A95: K | B95: 1428 | C95: 490 | D95: 0.81 | E95: 3.26
A96: Junior Alone
A97: A | B97: 1632 | C97: 530 | D97: 0.98 | E97: 4.9
A98: B | B98: 1305 | C98: 469 | D98: 0.98 | E98: 4.9
A99: C | B99: 898 | C99: 408 | D99: 0.98 | E99: 4.9
A100: D | B100: 1125 | C100: 408 | D100: 0.98 | E100: 4.9
A101: E | B101: 653 | C101: 326 | D101: 0.98 | E101: 4.9
A102: F | B102: 694 | C102: 326 | D102: 0.98 | E102: 4.9
A103: G | B103: 694 | C103: 326 | D103: 0.98 | E103: 4.9
A104: H | B104: 816 | C104: 408 | D104: 0.98 | E104: 4.9
A105: I | B105: 979 | C105: 408 | D105: 0.98 | E105: 4.9
A106: J | B106: 1632 | C106: 530 | D106: 0.98 | E106: 4.9
A107: K | B107: 1632 | C107: 530 | D107: 0.98 | E107: 4.9
A109: Para 30 | B109: http://www.legislation.gov.uk/uksi/2013/435/pdfs/uksi_20130435_en.pdf
A110: Daily rates payable where a trial lasts over 40 days
A111: Class of Offence Daily rate payable for days
A112: 41-50 (£)
A113: Daily rate payable for days 51
A114: and over (£)
A115: QC
A116: A | B116: 387 | C116: 414
A117: B | B117: 387 | C117: 414
A118: C | B118: 387 | C118: 414
A119: D | B119: 387 | C119: 414
A120: E | B120: 387 | C120: 414
A121: F | B121: 387 | C121: 414
A122: G | B122: 387 | C122: 414
A123: H | B123: 387 | C123: 414
A124: I | B124: 387 | C124: 414
A125: J | B125: 387 | C125: 414
A126: K | B126: 387 | C126: 414
A127: Leading Junior
A128: A | B128: 331 | C128: 356
A129: B | B129: 331 | C129: 356
A130: C | B130: 331 | C130: 356
A131: D | B131: 331 | C131: 356
A132: E | B132: 331 | C132: 356
A133: F | B133: 331 | C133: 356
A134: G | B134: 331 | C134: 356
A135: H | B135: 331 | C135: 356
A136: I | B136: 331 | C136: 356
A137: J | B137: 331 | C137: 356
A138: K | B138: 331 | C138: 356
A139: Led Junior
A140: A | B140: 221 | C140: 237
A141: B | B141: 221 | C141: 237
A142: C | B142: 221 | C142: 237
A143: D | B143: 221 | C143: 237
A144: E | B144: 221 | C144: 237
A145: F | B145: 221 | C145: 237
A146: G | B146: 221 | C146: 237
A147: H | B147: 221 | C147: 237
A148: I | B148: 221 | C148: 237
A149: J | B149: 221 | C149: 237
A150: K | B150: 221 | C150: 237
A151: Junior Alone
A152: A | B152: 266 | C152: 285
A153: B | B153: 247 | C153: 265
A154: C | B154: 247 | C154: 265
A155: D | B155: 266 | C155: 285
A156: E | B156: 225 | C156: 241
A157: F | B157: 225 | C157: 241
A158: G | B158: 225 | C158: 241
A159: H | B159: 247 | C159: 265
A160: I | B160: 247 | C160: 265
A161: J | B161: 266 | C161: 285
A162: K | B162: 266 | C162: 285
